bitfinex/quotes_ETHUSD_20241216
["timestamp","ask_amount","ask_price","bid_price","bid_amount"]
[1734349835229,0.55,3913.1,3912.6,0.7538]
[1734349835617,2.55567,3912.9,3912.6,0.7538]
[1734349835858,2.55572,3912.8,3912.5,0.005]
[1734349836257,0.55,3912.9,3912.5,0.005]
[1734349836782,0.8935849,3913.1,3912.5,0.005]
[1734349836783,2.55583,3912.7,3912.5,0.005]
[1734349836942,3.4491149,3913.1,3912.5,0.005]
[1734349836943,2.55584,3912.6,3912.5,0.005]
[1734349837276,3.10584,3912.6,3912.5,0.005]
[1734349838191,3.1061,3912.2,3912.1,0.026]
[1734349840294,3.9328,3912.2,3912.1,0.026]
[1734349840498,3.9328,3912.2,3910.4,0.02]
[1734349840677,0.8267,3911.2,3910.4,0.02]
[1734349840877,0.55,3911.1,3910.4,0.02]
[1734349841246,3.828,3911.5,3910.4,0.02]
[1734349841447,0.55,3911.2,3910.4,0.02]
[1734349841748,0.55,3911.0,3910.4,0.02]
[1734349841949,0.7608,3912.1,3910.6,0.7934]
[1734349842196,0.55,3911.8,3910.6,0.7934]
[1734349842365,0.55,3912.0,3910.6,0.7934]
[1734349842561,0.55,3912.0,3910.7,1.27851]
[1734349842765,0.55,3912.1,3910.9,0.8324]
[1734349842965,0.8217,3912.5,3910.9,2.11087]
[1734349843207,0.8217,3912.5,3910.9,0.8324]
[1734349843425,2.55611,3912.2,3910.9,0.8324]
[1734349843620,0.8217,3912.5,3911.2,2.43495709]
[1734349843820,1.38434603,3913.4,3911.3,3.7753]
[1734349843821,0.7844,3913.3,3911.3,3.7753]
[1734349843968,0.7844,3913.3,3911.5,0.7521]
[1734349844168,2.55573,3912.8,3911.5,0.7521]
[1734349844369,0.7844,3913.3,3911.5,0.7521]
[1734349844681,2.55545,3913.2,3911.6,0.503041]
[1734349845017,2.55574,3912.8,3911.6,0.503041]
[1734349845198,0.55,3912.7,3911.6,0.503041]
[1734349845382,0.91174922,3913.3,3911.8,1.27817]
[1734349845383,0.7844,3913.3,3911.8,1.27817]
[1734349845584,2.5552,3913.6,3912.1,0.783]
[1734349845918,3.7166101,3914.6,3912.5,0.783]
[1734349846222,0.7743,3914.6,3913.0,1.27778]
[1734349846525,2.55425,3915.1,3913.7,0.7806]
[1734349846701,0.8147,3915.4,3913.8,0.32155571]
[1734349847009,2.55412,3915.3,3913.8,0.32155571]
[1734349847267,2.55416,3915.2,3913.9,0.02023889]
[1734349847418,3.30515,3915.8,3913.8,1.59907571]
[1734349847731,0.57401071,3915.7,3914.0,2.43495709]
[1734349847877,0.7514,3916.3,3914.4,2.43495709]
[1734349848214,0.12968939,3916.2,3914.5,0.7538]
[1734349848553,0.34344794,3916.1,3914.5,0.7538]
[1734349849444,2.55377,3915.8,3914.5,0.7538]
[1734349849794,0.34344794,3916.1,3914.5,0.7538]
[1734349849987,2.55364,3916.0,3914.5,0.7538]
[1734349850835,2.55346,3916.3,3914.6,0.82063966]
[1734349851046,0.833,3916.7,3914.6,0.7951]
[1734349851353,2.55401,3915.5,3914.6,0.7951]
[1734349851667,0.55,3915.6,3914.6,0.7951]
[1734349851829,0.55,3915.5,3914.6,0.7951]
[1734349852003,2.55407,3915.4,3914.6,0.7951]
[1734349852359,0.915391,3915.5,3914.6,0.7951]
[1734349852360,0.55,3915.3,3914.6,0.7951]
[1734349852645,0.55,3915.5,3914.6,0.7951]
[1734349852646,2.55423,3915.1,3914.6,0.7951]
[1734349853010,0.55,3915.3,3914.6,0.7951]
[1734349853246,2.55405,3915.4,3914.6,0.7951]
[1734349853247,0.310405,3915.2,3914.6,0.7951]
[1734349853759,0.55,3915.1,3914.6,0.7951]
[1734349853969,2.55427,3915.1,3914.2,0.8207]
[1734349854099,3.34829,3915.8,3914.2,0.8207]
[1734349854100,0.55,3915.0,3914.2,0.8207]
[1734349854443,0.55,3915.1,3914.2,0.8207]
[1734349854600,0.860417,3915.1,3914.2,0.8207]
[1734349855004,2.55398,3915.5,3914.2,0.8207]
[1734349855232,0.55,3915.4,3914.2,0.8207]
[1734349856150,2.55423,3915.1,3914.2,0.8207]
[1734349856357,0.55,3915.5,3914.2,0.8207]
[1734349856508,2.55416,3915.2,3914.2,0.8207]
[1734349856701,0.255416,3915.1,3914.2,0.8207]
[1734349856897,2.55429,3915.0,3914.2,0.8207]
[1734349857902,0.55,3914.9,3914.2,0.8207]
[1734349858120,0.55,3915.5,3914.2,0.8207]
[1734349858306,0.55,3914.9,3914.2,0.8207]
[1734349858511,2.864851,3914.8,3914.2,0.8207]
[1734349858709,0.310431,3914.8,3914.2,0.8207]
[1734349858955,2.55408,3915.3,3914.2,0.8207]
[1734349858956,3.10435,3914.9,3914.2,0.8207]
[1734349859564,0.55,3914.9,3914.2,0.8207]
[1734349859708,2.55401,3915.5,3914.2,0.8207]
[1734349859709,2.554,3915.5,3914.2,0.8207]
[1734349859917,0.55,3915.4,3914.2,2.09808]
[1734349860111,3.0,3915.9,3914.2,2.09808]
[1734349860112,0.55,3915.5,3914.4,3.00362025]
[1734349860410,0.37945,3916.1,3914.9,0.8107]
[1734349860411,2.93302,3916.1,3914.9,0.8107]
[1734349860608,2.55323,3916.6,3914.9,0.8107]
[1734349860862,2.55408,3915.3,3914.9,0.8107]
[1734349861223,2.55417,3915.2,3914.9,0.8107]
[1734349861441,0.255408,3915.3,3914.9,0.8107]
[1734349861655,2.55401,3915.4,3914.9,0.8107]
[1734349861962,2.55412,3915.3,3914.9,0.8107]
[1734349862307,2.55458,3914.6,3914.1,0.8087]
[1734349862463,3.55,3915.5,3914.1,0.8087]
[1734349862674,2.5548,3914.2,3914.1,0.8087]
[1734349862831,3.32256,3915.1,3913.6,0.8329]
[1734349862832,2.55493,3914.0,3913.6,0.8329]
[1734349863011,0.55,3914.4,3913.6,0.8329]
[1734349863325,2.55512,3913.7,3913.6,0.8329]
[1734349863541,2.810632,3913.7,3913.6,0.8329]
[1734349863927,2.810632,3913.7,3912.9,0.8329]
[1734349864146,2.55539,3913.3,3912.9,0.8329]
[1734349864554,2.55557,3913.1,3912.9,0.8329]
[1734349864756,2.55552,3913.1,3912.9,0.8329]
[1734349865570,2.55558,3913.0,3912.9,0.8329]
[1734349866079,0.55,3912.9,3912.1,0.8323]
[1734349866279,2.5561,3912.2,3912.1,0.8323]
[1734349867086,0.55,3912.8,3911.3,0.7595]
[1734349867319,0.8171,3913.1,3911.3,0.7595]
[1734349867320,2.55591,3912.5,3911.3,0.7595]
[1734349867486,0.55,3912.6,3911.3,0.7595]
[1734349867689,0.55,3912.2,3911.3,0.7595]
[1734349867840,2.55653,3911.6,3911.3,0.7595]
[1734349869659,0.55,3912.0,3911.3,0.7595]
[1734349870213,2.55631,3911.9,3911.3,0.7595]
[1734349870353,2.55637,3911.8,3911.3,0.7595]
[1734349870549,0.55,3912.3,3911.3,0.7595]
[1734349870754,0.55,3912.1,3911.3,0.7595]
[1734349870953,2.55634,3911.9,3911.3,0.7595]
[1734349871399,0.55,3912.3,3910.7,0.7605]
[1734349871618,0.55,3912.6,3910.7,0.7605]
[1734349872101,2.55644,3911.7,3910.7,0.7605]
[1734349872458,2.55629,3912.0,3910.7,0.7605]
[1734349872656,0.819,3913.1,3911.2,3.00362025]
[1734349872896,0.55,3912.5,3911.3,3.7605]
[1734349873051,3.37452,3913.1,3911.3,5.03883]
[1734349873251,2.55571,3912.8,3911.4,0.7605]
[1734349873494,2.5558,3912.7,3911.6,0.7605]
[1734349873708,3.37424,3913.6,3911.6,0.7605]
[1734349873709,0.819,3913.6,3911.6,0.7605]
[1734349873855,0.819,3913.6,3911.7,0.7605]
[1734349874055,2.55578,3912.7,3911.8,0.7605]
[1734349874292,2.55623,3912.0,3911.8,0.7605]
[1734349874499,2.55614,3912.2,3911.8,0.7605]
[1734349875373,2.55582,3912.7,3911.8,0.7605]
[1734349875571,2.5555,3913.2,3911.8,0.7605]
[1734349875775,2.55579,3912.7,3911.8,0.7605]
[1734349876189,0.819,3913.6,3911.8,0.7605]
[1734349876358,2.55536,3913.4,3911.8,0.8242]
[1734349876564,0.825,3914.1,3912.1,3.8242]
[1734349876788,0.825,3914.1,3912.1,0.8242]
[1734349876789,0.38286203,3914.0,3912.1,0.8242]
[1734349876989,2.55506,3913.8,3912.1,0.8242]
[1734349877211,2.55603,3912.4,3912.1,0.8242]
[1734349877425,2.55519,3913.6,3912.1,0.8242]
[1734349877426,2.811703,3912.3,3912.1,0.8242]
[1734349877589,2.5561,3912.3,3912.1,0.8242]
[1734349877787,0.55,3912.1,3911.6,0.8147]
[1734349878031,2.55644,3911.7,3910.6,0.8147]
[1734349878328,2.55656,3911.5,3910.6,0.8147]
[1734349878488,0.55,3911.4,3910.6,0.8147]
[1734349878690,3.10664,3911.4,3910.6,0.8147]
[1734349879083,2.55675,3911.3,3910.6,0.8147]
[1734349879279,0.55,3911.2,3910.6,1.19903203]
[1734349879475,0.55,3911.2,3910.6,0.8147]
[1734349879689,1.05381703,3913.4,3910.6,0.8147]
[1734349879690,0.55,3911.3,3910.6,0.8147]
[1734349879983,0.55,3911.3,3910.6,2.09327]
[1734349880175,2.55624,3912.0,3910.8,3.0]
[1734349880421,0.55,3911.9,3910.9,0.8217]
[1734349880575,0.55,3911.9,3911.0,0.81038503]
[1734349880778,2.5567,3911.3,3910.9,0.8217]
[1734349881690,0.7822,3912.0,3910.9,0.8217]
[1734349881691,2.55653,3911.6,3910.9,0.8217]
[1734349881910,2.55663,3911.4,3910.9,0.8217]
[1734349882116,2.5565,3911.6,3910.9,0.8217]
[1734349882345,2.55663,3911.4,3910.9,0.8217]
[1734349882552,2.55643,3911.8,3910.9,0.8217]
[1734349882694,2.55644,3911.7,3910.9,0.8217]
[1734349882894,0.7822,3912.5,3910.9,0.8217]
[1734349883230,2.55617,3912.1,3910.9,2.10016]
[1734349883435,6.06850072,3913.4,3911.2,0.8217]
[1734349883436,0.7822,3912.9,3911.2,0.8217]
[1734349883608,2.55597,3912.4,3911.2,0.8217]
[1734349884247,0.7822,3912.9,3911.2,0.8217]
[1734349884394,2.5562,3912.1,3911.2,0.8217]
[1734349885118,2.55628,3912.0,3911.2,0.8217]
[1734349885323,0.255628,3912.0,3911.2,0.8217]
[1734349885488,2.55577,3912.7,3911.2,0.8217]
[1734349885711,2.55571,3912.8,3911.3,1.29409669]
[1734349886036,2.55534,3913.4,3911.3,1.29409669]
[1734349886037,3.38654,3913.4,3911.7,0.7721]
[1734349886286,3.38654,3913.4,3911.8,0.7721]
[1734349886287,2.55534,3913.4,3911.8,0.7721]
[1734349886436,2.55565,3912.9,3911.8,0.7721]
[1734349886639,2.55565,3912.9,3911.9,0.37721]
[1734349887257,2.55576,3912.8,3911.9,0.37721]
[1734349887419,0.55,3913.7,3911.8,0.7721]
[1734349887630,2.55595,3912.5,3911.8,0.7721]
[1734349888170,0.8191,3913.0,3911.8,0.7721]
[1734349888461,2.55611,3912.2,3911.8,0.7721]
[1734349888655,2.55598,3912.4,3911.8,0.7721]
[1734349889317,2.55605,3912.3,3911.8,0.7721]
[1734349889813,0.8191,3913.0,3911.8,0.7721]
[1734349890009,2.55608,3912.3,3911.8,0.7721]
[1734349890414,2.55586,3912.6,3911.8,0.7721]
[1734349890651,3.37471,3913.0,3911.8,0.7721]
[1734349890652,0.255586,3912.5,3911.8,0.7721]
[1734349890814,2.55598,3912.4,3911.8,0.7721]
[1734349891613,0.8191,3913.0,3911.8,0.7721]
[1734349891817,2.55603,3912.4,3911.8,0.7721]
[1734349892614,2.55582,3912.7,3911.8,0.7721]
[1734349893115,2.55614,3912.2,3911.8,0.7721]
[1734349893344,2.55617,3912.1,3911.8,0.7721]
[1734349893664,2.55606,3912.3,3911.8,0.7721]
[1734349894814,0.8191,3913.0,3911.8,0.7721]
[1734349895016,0.8191,3913.0,3910.8,0.832]
[1734349895017,0.7535,3912.1,3910.8,0.832]
[1734349895254,2.55655,3911.6,3910.8,0.832]
[1734349895965,2.55656,3911.5,3910.8,0.832]
[1734349896131,3.0,3912.8,3910.8,0.832]
[1734349896132,2.55636,3911.9,3910.8,0.832]
[1734349896490,2.5563,3911.9,3910.9,0.211056]
[1734349896673,2.55618,3912.1,3910.9,0.211056]
[1734349896959,0.12834366,3913.2,3910.9,0.211056]
[1734349896960,2.55603,3912.4,3911.3,0.8194]
[1734349897259,2.55603,3912.4,3911.3,1.32953902]
[1734349897465,0.78,3913.1,3911.3,1.32953902]
[1734349897466,2.55594,3912.5,3911.3,1.32953902]
[1734349897829,2.55594,3912.5,3911.3,2.60787902]
[1734349898166,2.55599,3912.4,3911.3,1.32953902]
[1734349898460,2.55599,3912.4,3911.4,0.56115393]
[1734349898835,2.55589,3912.6,3910.9,1.013256]
[1734349899033,2.55644,3911.7,3910.9,0.8022]
[1734349899255,2.55614,3912.2,3910.9,0.8022]
[1734349899483,2.55636,3911.9,3910.9,0.8022]
[1734349900062,2.55642,3911.8,3910.9,0.8022]
[1734349901468,0.55,3912.6,3910.9,0.8022]
[1734349901694,2.55689,3911.0,3910.9,0.8022]
[1734349901972,2.55709,3910.7,3910.5,0.005]
[1734349902177,2.55715,3910.6,3910.5,0.005]
[1734349903377,2.55721,3910.5,3910.4,0.01923676]
[1734349903527,3.068646,3910.5,3910.4,0.01923676]
[1734349903723,0.8139,3910.7,3910.4,0.01923676]
[1734349903919,2.55721,3910.5,3910.4,0.01923676]
[1734349906127,0.8139,3910.7,3908.8,0.7508]
[1734349906375,2.55776,3909.7,3908.8,0.7508]
[1734349906724,2.55721,3910.5,3908.8,0.77638068]
[1734349906954,0.8139,3910.7,3908.9,0.37800009]
[1734349907268,2.55728,3910.4,3909.2,0.7508]
[1734349907619,2.55728,3910.4,3909.3,0.55]
[1734349908024,2.55717,3910.6,3909.4,0.7974]
[1734349908261,2.55703,3910.8,3909.4,2.33214]
[1734349908464,1.58072555,3911.5,3909.8,0.55]
[1734349908465,2.5569,3911.0,3909.8,0.55]
[1734349908695,1.05381703,3911.6,3910.3,3.00362025]
[1734349908980,1.05381703,3911.6,3910.4,1.88116502]
[1734349908981,2.5565,3911.6,3910.4,1.88116502]
[1734349909274,0.7912,3911.7,3910.4,1.33116502]
[1734349909424,0.7912,3911.7,3910.4,0.7976]
[1734349909840,3.34763,3911.7,3910.4,0.7976]
[1734349910142,3.34763,3911.7,3910.5,0.55]
[1734349910143,2.55643,3911.7,3910.5,0.55]
[1734349910454,1.05381703,3912.1,3910.7,0.7575]
[1734349910672,0.8099,3912.2,3910.9,1.53416]
[1734349910974,2.55618,3912.1,3910.8,0.55]
[1734349911201,0.17439,3912.5,3910.8,0.55]
[1734349911506,1.04969237,3912.3,3910.9,0.284175]
[1734349911648,2.55632,3911.9,3910.8,0.55]
[1734349912054,1.04969237,3912.3,3910.7,0.7575]
[1734349912307,2.55641,3911.8,3910.7,0.7575]
[1734349912591,2.55644,3911.7,3910.7,0.7575]
[1734349912960,1.04969237,3912.2,3910.8,0.55]
[1734349913156,1.92855756,3912.4,3910.8,0.55]
[1734349913157,2.55618,3912.1,3910.9,0.13075]
[1734349914650,1.40371137,3912.4,3910.9,0.13075]
[1734349914942,2.55631,3911.9,3910.9,0.13075]
[1734349915195,2.55649,3911.7,3910.7,0.7575]
[1734349915557,2.55647,3911.7,3910.7,0.7575]
[1734349915864,2.55663,3911.4,3910.7,0.7575]
[1734349916259,2.55651,3911.6,3910.7,0.7575]
[1734349916998,2.55647,3911.7,3910.2,0.7917]
[1734349917202,1.04969237,3911.9,3909.5,3.28822]
[1734349917203,1.22837969,3911.6,3910.5,0.7917]
[1734349917513,2.5563,3911.9,3910.7,0.7917]
[1734349918016,2.5562,3912.1,3910.7,0.7917]
[1734349918222,2.5562,3912.1,3910.6,1.53425]
[1734349918375,3.60573237,3912.3,3910.9,0.7917]
[1734349918579,2.5561,3912.2,3911.0,0.53550985]
[1734349918828,1.04969237,3912.5,3911.1,1.39906719]
[1734349918988,1.04969237,3913.0,3911.6,0.8235]
[1734349919313,1.04969237,3913.1,3911.6,0.8235]
[1734349919472,3.48268372,3913.0,3911.6,0.8235]
[1734349919674,2.55579,3912.7,3911.6,0.8235]
[1734349919987,2.55588,3912.6,3911.6,0.8235]
[1734349920526,2.55568,3912.9,3911.6,0.8235]
[1734349920823,1.04969237,3913.1,3911.6,0.8235]
[1734349921026,2.87664076,3913.1,3911.6,0.8235]
[1734349921318,0.86834964,3913.0,3911.8,0.8305]
[1734349921525,2.55564,3912.9,3911.8,0.8305]
[1734349921820,2.55564,3912.9,3911.8,1.066939]
[1734349922003,3.26122933,3913.1,3911.8,1.066939]
[1734349922174,1.04969237,3913.2,3911.9,1.3805]
[1734349922381,2.55561,3913.0,3911.9,0.8305]
[1734349922609,0.7816,3913.1,3911.9,0.8305]
[1734349922837,2.55614,3912.2,3911.9,0.8305]
[1734349923018,1.04969237,3912.9,3911.9,0.8305]
[1734349923207,0.34058309,3912.9,3911.9,0.8305]
[1734349923403,1.04969237,3913.2,3911.9,0.8305]
[1734349923603,2.51865816,3913.5,3912.5,0.776]
[1734349923604,1.04969237,3913.5,3912.5,0.776]
[1734349923820,2.55514,3913.7,3912.6,0.776]
[1734349924058,2.55514,3913.7,3912.7,0.55]
[1734349924429,2.55497,3914.0,3912.9,0.776]
[1734349924627,2.55472,3914.4,3912.9,0.776]
[1734349924628,1.04969237,3914.2,3912.9,0.776]
[1734349924827,2.55514,3913.7,3912.9,0.776]
[1734349925160,1.04969237,3914.2,3913.0,0.55]
[1734349925367,1.04969237,3914.8,3913.5,0.55]
[1734349925548,3.60394237,3915.1,3913.5,0.55]
[1734349925711,2.16997847,3915.0,3913.5,0.55]
[1734349926063,2.55429,3915.0,3913.7,1.53306]
[1734349926267,2.5544,3914.8,3913.9,0.55]
[1734349926631,2.55446,3914.8,3913.9,0.55]
[1734349927049,2.55408,3915.4,3914.2,0.8197]
[1734349927263,1.88199237,3915.7,3914.3,0.55]
[1734349927463,1.57453856,3915.9,3914.5,0.55]
[1734349927464,2.55398,3915.5,3914.5,0.55]
[1734349927660,0.255398,3915.4,3914.6,0.8197]
[1734349927975,2.55374,3915.9,3914.6,0.8197]
[1734349928273,2.55395,3915.5,3914.6,0.8197]
[1734349928434,2.55388,3915.6,3914.7,0.55]
[1734349928819,2.55388,3915.6,3914.6,0.8197]
[1734349929370,1.58382935,3916.6,3914.6,0.8197]
[1734349929371,4.43281237,3916.5,3914.6,0.8197]
[1734349929522,2.55343,3916.3,3914.6,0.8197]
[1734349929721,2.55442,3914.8,3914.6,0.8197]
[1734349930016,3.3837,3915.6,3914.6,0.8197]
[1734349930583,0.8298,3915.6,3914.6,0.8197]
[1734349930738,2.55435,3914.9,3914.6,0.8197]
[1734349930941,2.55447,3914.7,3913.8,0.55]
[1734349931161,2.55456,3914.6,3913.8,0.55]
[1734349931327,0.255456,3914.5,3913.7,0.7667]
[1734349931535,2.55473,3914.3,3913.7,0.7667]
[1734349931728,3.0,3915.3,3913.7,0.7667]
[1734349932030,2.55428,3915.0,3913.7,0.7667]
[1734349932428,3.0,3915.4,3913.7,0.7667]
[1734349932666,3.3722129,3915.4,3913.7,0.7667]
[1734349932876,3.0,3915.1,3913.7,0.7667]
[1734349933056,2.5544,3914.8,3913.7,0.7667]
[1734349933256,3.0,3915.1,3913.7,0.7667]
[1734349933470,2.55487,3914.1,3913.7,0.7667]
[1734349933888,2.55455,3914.6,3913.7,0.7667]
[1734349934102,2.55506,3913.8,3913.7,0.7667]
[1734349934684,2.55466,3914.4,3912.8,0.8151]
[1734349934892,0.635484,3915.0,3914.1,3.00362025]
[1734349935204,0.3722129,3915.4,3914.2,0.8151]
[1734349935502,3.0,3915.2,3914.2,0.8151]
[1734349935703,2.55453,3914.6,3914.2,0.8151]
[1734349935999,2.810073,3914.5,3914.2,0.8151]
[1734349936399,0.255453,3914.5,3914.2,0.8151]
[1734349936703,2.55473,3914.3,3914.2,0.8151]
[1734349938497,3.31379,3915.3,3914.2,0.8151]
[1734349938498,2.55414,3915.2,3914.2,0.8151]
[1734349938815,0.3722129,3915.4,3914.2,0.8151]
[1734349938977,2.55428,3915.0,3914.2,0.8151]
[1734349939163,0.338359,3915.5,3914.2,0.8151]
[1734349939357,2.55441,3914.8,3914.2,0.8151]
[1734349939860,2.55414,3915.2,3914.2,0.8151]
[1734349940064,0.338359,3915.5,3914.2,0.8151]
[1734349940065,2.55436,3914.9,3914.2,0.8151]
[1734349940523,2.5545,3914.7,3914.2,0.8151]
[1734349941378,2.809634,3915.1,3914.2,0.8151]
[1734349941379,2.55473,3914.3,3914.2,0.8151]
[1734349941677,0.255473,3914.3,3913.2,0.7712]
[1734349942076,2.55529,3913.5,3913.2,0.7712]
[1734349942537,0.255473,3914.3,3913.2,0.7712]
[1734349942538,2.555,3913.9,3913.2,0.7712]
[1734349942709,0.2555,3913.8,3913.2,0.7712]
[1734349942871,2.55499,3913.9,3913.2,0.7712]
[1734349943378,0.255473,3914.3,3913.2,0.7712]
[1734349943675,2.55538,3913.3,3913.2,0.7712]
[1734349943876,0.8131,3913.7,3912.0,0.7876]
[1734349944081,2.55554,3913.1,3912.0,1.29454303]
[1734349944320,2.55554,3913.1,3912.1,0.7539]
[1734349945122,2.55537,3913.4,3912.4,0.7539]
[1734349945292,0.255473,3914.3,3912.8,0.7914]
[1734349945820,0.255473,3914.3,3912.7,3.00362025]
[1734349945821,2.55489,3914.1,3912.9,0.02555411]
[1734349946135,2.555,3913.9,3913.0,0.7914]
[1734349946285,2.55514,3913.7,3913.0,0.7914]
[1734349946637,2.55506,3913.8,3912.2,0.7856]
[1734349946798,2.55519,3913.6,3912.2,0.7856]
[1734349946979,2.55604,3912.3,3912.2,0.7856]
[1734349947530,2.55604,3912.3,3909.5,0.28822]
[1734349947531,2.55636,3911.8,3911.7,0.8215]
[1734349947880,0.782,3912.5,3911.2,0.8215]
[1734349947881,2.55643,3911.7,3911.2,0.8215]
[1734349948377,3.0677,3911.7,3910.8,0.8021]
[1734349948577,3.8405,3911.7,3910.8,0.8021]
[1734349948853,1.0184,3911.7,3910.8,0.8021]
[1734349949212,1.0184,3911.7,3909.7,3.00362025]
[1734349949448,3.57483,3911.7,3911.6,1e-05]
[1734349950941,4.0184,3911.7,3910.2,0.7897]
[1734349951127,2.55716,3910.6,3910.2,0.7897]
[1734349951544,2.55722,3910.5,3910.2,0.7897]
[1734349951745,2.55656,3911.5,3910.2,0.7897]
[1734349951960,2.55724,3910.5,3910.2,0.7897]
[1734349952237,2.55711,3910.7,3910.2,0.7897]
[1734349952567,2.55675,3911.3,3910.2,0.7897]
[1734349952831,2.55703,3910.8,3910.2,0.7897]
[1734349953154,0.1375883,3911.5,3910.2,0.7897]
[1734349953444,2.55725,3910.5,3910.2,0.7897]
[1734349953821,3.0,3911.2,3910.2,0.7897]
[1734349954037,2.55716,3910.6,3910.2,0.7897]
[1734349954217,2.55708,3910.7,3910.2,0.7897]
[1734349954537,2.55722,3910.5,3910.2,0.7897]
[1734349954739,3.0,3911.3,3910.2,0.7897]
[1734349954944,2.55715,3910.6,3910.2,0.7897]
[1734349955115,3.34950713,3911.3,3910.2,0.7897]
[1734349955469,2.55728,3910.4,3910.2,0.7897]
[1734349955618,2.55734,3910.3,3910.2,0.7897]
[1734349956173,2.55676,3911.2,3909.6,0.7886]
[1734349956174,2.5575,3910.1,3909.6,0.7886]
[1734349956316,2.55741,3910.2,3909.6,0.7886]
[1734349956717,2.5575,3910.1,3909.6,0.7886]
[1734349957126,1.39622671,3911.1,3909.6,0.7886]
[1734349957330,2.5573,3910.4,3909.6,0.7886]
[1734349957529,2.55744,3910.2,3909.6,0.7886]
[1734349957737,5.55692,3911.0,3909.7,3.00362025]
[1734349957931,2.55671,3911.3,3910.2,0.7885]
[1734349958268,2.55676,3911.2,3910.3,0.37921203]
[1734349958563,0.7604,3911.7,3910.3,0.37921203]
[1734349958729,2.05686,3911.1,3910.3,0.37921203]
[1734349959058,2.05686,3911.1,3910.4,0.41713323]
[1734349959421,3.0,3911.5,3910.4,0.41713323]
[1734349959635,2.5567,3911.3,3910.4,0.41713323]
[1734349960124,0.1267602,3911.8,3910.4,0.41713323]
[1734349960125,2.55656,3911.6,3910.5,0.8254]
[1734349960470,0.806,3912.1,3910.5,0.8254]
[1734349960471,2.55663,3911.4,3910.5,0.8254]
[1734349960622,2.55623,3912.0,3910.5,0.8254]
[1734349960823,2.55636,3911.8,3910.5,0.8254]
[1734349961018,0.336223,3911.9,3910.5,0.8254]
[1734349961019,2.55649,3911.6,3910.5,0.8254]
[1734349961217,2.55691,3911.0,3910.5,0.8254]
[1734349961624,5.55648,3911.7,3910.5,0.8254]
[1734349961862,2.55703,3910.8,3910.5,0.8254]
[1734349962064,2.55656,3911.5,3910.5,0.8254]
[1734349962230,2.55741,3910.2,3910.1,7.78763955]
[1734349962734,2.55713,3910.7,3910.1,7.78763955]
[1734349962926,3.0,3911.2,3910.1,7.78763955]
[1734349962927,2.55727,3910.5,3910.1,7.78763955]
[1734349963128,2.55677,3911.2,3910.1,7.78763955]
[1734349963438,2.55722,3910.5,3910.1,7.78763955]
[1734349963644,2.55729,3910.4,3910.1,7.78763955]
[1734349963854,3.0,3911.1,3910.1,7.78763955]
[1734349964198,2.55709,3910.7,3910.1,7.78763955]
[1734349964348,2.55712,3910.7,3910.1,7.78763955]
[1734349964547,2.55689,3911.0,3910.1,7.78763955]
[1734349964774,3.555689,3910.9,3910.1,7.78763955]
[1734349964974,2.55731,3910.4,3910.1,7.78763955]
[1734349965182,0.555689,3910.9,3910.1,7.78763955]
[1734349965487,2.55738,3910.3,3910.1,7.78763955]
[1734349965657,2.55741,3910.2,3910.1,7.78763955]
[1734349965859,2.813151,3910.2,3910.1,6.97983955]
[1734349966170,2.55741,3910.2,3910.1,6.97983955]
[1734349967382,3.0,3911.6,3910.1,6.97983955]
[1734349967643,2.55734,3910.4,3910.1,6.97983955]
[1734349967793,2.55713,3910.7,3910.1,6.97983955]
[1734349968004,2.55718,3910.6,3910.1,6.97983955]
[1734349968295,2.55695,3910.9,3910.1,6.97983955]
[1734349968474,2.5573,3910.4,3910.1,6.97983955]
[1734349968659,2.55735,3910.3,3910.1,6.97983955]
[1734349968867,2.55741,3910.2,3910.1,6.97983955]
[1734349969851,2.55726,3910.5,3910.1,6.97983955]
[1734349970053,0.8306,3910.6,3910.1,6.97983955]
[1734349970281,0.255695,3910.9,3910.1,6.97983955]
[1734349970595,2.812655,3910.9,3910.1,6.97983955]
[1734349971089,0.255695,3910.9,3910.1,6.97983955]
[1734349971289,2.55705,3910.8,3910.1,6.97983955]
[1734349971512,2.55721,3910.6,3910.1,6.97983955]
[1734349971664,2.55722,3910.5,3910.1,6.97983955]
[1734349971862,3.0,3910.8,3910.1,6.97983955]
[1734349972079,2.5574,3910.3,3910.1,6.97983955]
[1734349972563,2.55708,3910.7,3910.1,6.97983955]
[1734349972801,2.55739,3910.3,3910.1,6.97983955]
[1734349973108,2.55718,3910.6,3910.1,6.97983955]
[1734349973865,2.55728,3910.4,3910.1,6.97983955]
[1734349975130,3.0,3910.7,3910.1,6.97983955]
[1734349975304,2.55722,3910.5,3910.1,6.97983955]
[1734349975608,2.55727,3910.5,3910.1,6.97983955]
[1734349975905,2.55703,3910.8,3910.1,6.97983955]
[1734349975906,2.55736,3910.3,3910.1,6.97983955]
[1734349976065,2.55739,3910.3,3910.1,6.97983955]
[1734349976272,2.55741,3910.2,3910.1,6.97983955]
[1734349978940,3.0,3910.8,3910.1,6.97983955]
[1734349979219,2.55741,3910.2,3910.1,6.97983955]
[1734349979534,2.55741,3910.2,3910.1,4.42235955]
[1734349979535,6.37001,3910.2,3910.1,4.42235955]
[1734349979704,2.55787,3909.5,3909.4,1.0]
[1734349980017,3.069429,3909.5,3909.4,1.0]
[1734349980319,2.55846,3908.6,3908.5,0.005]
[1734349982010,5.55846,3908.6,3908.5,0.005]